Cogmind - Beta 16 @@@ ROGUE MODE // 2026.01.07 @ 23:36:18 Player: Pepsi Result: Destroyed by 9X-OP3(j) with Overtuned Pulse Rifle Performance ------------- Evolutions (0) 0 Regions Visited (3) 600 Robots Destroyed (22) 110 Value Destroyed (498) 498 Prototype IDs (12) 240 Alien Tech Used (0) 0 Bonus (800) 800 TOTAL SCORE: 2248 Bonus ------- Registered with UFD 300 Met Optimus in HQ 500 Cogmind --------- Core Integrity 0/250 Matter 260/300 Energy 290/290 System Corruption 0% Temperature Cool (70) Movement Walking (100) Location -9/Scraptown Parts ------- > --- POWER (1) -------- Improved Deuterium Engine > --- PROPULSION (2) --- Overtuned Titanium Leg Overtuned Titanium Leg > --- UTILITY (2) ------ Improved Heat Sink Small Storage Unit > --- WEAPON (2) ------- Overtuned Pulse Rifle Grenade Launcher > --- INVENTORY (8) ---- Improved Deuterium Engine Carbon-fiber Leg Armored Huge Wheel Scrap Shield Grenade Launcher Thermal Lance Peak State ------------ > --- POWER ------------ Improved Deuterium Engine > --- PROPULSION ------- Carbon-fiber Leg Improved Carbon-fiber Leg > --- UTILITY ---------- Improved Heat Sink Small Storage Unit > --- WEAPON ----------- Plasma Rifle Thermal Lance > --- INVENTORY -------- VSS Leg Armored Huge Wheel Scrap Shield Subdweller Machine Gun Grenade Launcher Grenade Launcher [Rating: 31] Favorites ----------- Power Subdweller Power Source Engine Subdweller Power Source Power Core Light Nuclear Core Propulsion Carbon-fiber Leg Treads Light Treads Leg Carbon-fiber Leg Utility Small Storage Unit Device Improved Heat Sink Storage Small Storage Unit Protection Light Armor Plating Weapon Subdweller Laser Energy Gun Subdweller Laser Ballistic Gun Subdweller Machine Gun Ballistic Cannon Light Cannon Launcher Grenade Launcher Piercing Weapon Thermal Lance Build | -11 -10 -10 -9 ------- Run | Yrd Mat Sub Scr Slots Evolved . | . . . . Power . | . . . . Propulsion . | . . . . Utility . | . . . . Weapon . | . . . . Parts Attached 42 | 7 11 14 10 Power 7 | 1 1 2 3 Engine 6 | 1 . 2 3 Core 1 | . 1 . . Reactor . | . . . . Propulsion 14 | 3 4 3 4 Treads 1 | 1 . . . Leg 13 | 2 4 3 4 Wheel . | . . . . Hover . | . . . . Flight . | . . . . Utility 5 | 1 2 2 . Device 3 | . 1 2 . Storage 1 | 1 . . . Processor . | . . . . Hackware . | . . . . Protection 1 | . 1 . . Artifact . | . . . . Weapon 16 | 2 4 7 3 Energy Gun 8 | 2 1 3 2 Energy Cannon . | . . . . Ballistic Gun 3 | . 1 2 . Ballistic Cannon 2 | . 2 . . Launcher 2 | . . 2 . Special Weapon . | . . . . Impact Weapon . | . . . . Slashing Weapon . | . . . . Piercing Weapon 1 | . . . 1 Special Melee Weapon . | . . . . Unidentified Prototypes . | . . . . Parts Lost 8 | . 4 4 . Power . | . . . . Propulsion 3 | . 2 1 . Utility 2 | . 1 1 . Weapon 3 | . 1 2 . Highest Loss Streak 4 | . 3 4 . To Critical Strikes . | . . . . Average Backups 6 | 2 7 7 6 Power 1 | . 1 2 . Propulsion 2 | 1 2 2 2 Utility 1 | . 1 . 1 Weapon 1 | . 1 2 2 Tool/Special . | . . . . Unused Backups 16 | . 4 5 7 Power 2 | . . 1 1 Propulsion 8 | . . 3 5 Utility 4 | . 2 1 1 Weapon 2 | . 2 . . Tool/Special . | . . . . Average Slot Usage (%) 97 | . 95 94 99 Engine 11 | . 5 14 14 Core 2 | . 8 . . Leg 27 | . 27 28 27 Device 9 | . 2 10 14 Storage 14 | . 14 14 14 Protection 3 | . 8 2 . Energy Gun 14 | . 15 13 14 Ballistic Gun 10 | . 7 7 12 Ballistic Cannon 1 | . 4 2 . Peak Build Rating 31 | 6 9 17 31 Average Rating 14 | 4 8 13 19 On Entrance 8 | . 6 9 17 Avg Prop Armor Cover (%) . | . . . . Naked Turns . | . . . . Heaviest Build 24 | 12 17 19 24 Greatest Support 38 | 20 20 30 38 Greatest Overweight (x) 5 | . 5 1 1 Average Overweight (x) . | . . . . Largest Inventory Capacity 8 | 8 8 8 8 Average Capacity 7 | 5 8 8 8 Most Carried 8 | 5 8 8 8 Average Carried 7 | 2 7 7 7 Final Capacity 8 | 8 8 8 8 Final Carried 8 | 4 8 8 8 Class Distribution -------------------- 65% | Scavenger-Mutant 34% | Mutant Dominant Class ---------------- Mutant | -10/Materials Scavenger-Mutant | -10/Subcaves Scavenger-Mutant | -9/Scraptown Resources | -11 -10 -10 -9 ----------- Run | Yrd Mat Sub Scr Matter Collected 845 | 223 309 213 100 Remotely . | . . . . Salvage Created 723 | . 598 80 45 Parts 54 | . 39 11 4 Haulers Intercepted 1 | . 1 . . Recyclers Shooed 1 | . 1 . . Parts Field Recycled . | . . . . Retrieved Matter . | . . . . Parts Self-Destructed 8 | . . 3 5 Prevented . | . . . . Parts Restored . | . . . . Kills | -11 -10 -10 -9 ------- Run | Yrd Mat Sub Scr Combat Hostiles Destroyed 15 | . 11 3 1 Guns 13 | . 9 3 1 Cannons 2 | . 2 . . Classes Destroyed 8 | . 6 1 1 Hauler 1 | . 1 . . Recycler 2 | . 2 . . Operator 1 | . 1 . . Watcher 3 | . 3 . . Swarmer 6 | . 5 1 . Grunt 6 | . 6 . . Subdweller 2 | . . 2 . Guru 1 | . . . 1 Best Kill Streak 5 | . 5 1 1 Combat Bots Only 3 | . 3 1 1 Max Kills in Single Turn 2 | . 2 1 1 Gunslinging . | . . . . Exploded . | . . . . Melee . | . . . . Uniques/NPCs Destroyed . | . . . . Combat | -11 -10 -10 -9 -------- Run | Yrd Mat Sub Scr Hostile Shots Fired 153 | . 91 57 5 Missed 52 | . 30 21 1 Hits 101 | . 61 36 4 Projectile 101 | . 61 36 4 Critical Strikes 1 | . . 1 . Damage Taken 1419 | . 633 716 70 Core 253 | . 107 118 28 Absorbed by Shields 21 | . 21 . . Core Remaining (%) 100 | 100 . . . Volleys Fired 107 | . 70 32 5 Largest 2 | . 2 2 2 Hottest 110 | . 80 85 110 Shots Fired 188 | . 134 48 6 Gun 167 | . 119 43 5 Cannon 20 | . 15 5 . Launcher 1 | . . . 1 Special . | . . . . Kinetic 70 | . 52 16 2 Thermal 117 | . 82 32 3 Explosive 1 | . . . 1 Electromagnetic . | . . . . Robot Hit Streak 12 | . 8 12 10 Robot Miss Streak 5 | . 5 2 . Penetration Max . | . . . . Secondary Targets . | . . . . Shots Hit Robots 100 | . 73 23 4 Core Hits 38 | . 30 5 3 Critical Kills . | . . . . Critical Parts Destroyed . | . . . . Critical Strikes . | . . . . Melee Attacks . | . . . . Impact . | . . . . Slashing . | . . . . Piercing . | . . . . Sneak Attacks . | . . . . Combat Hostiles . | . . . . Follow-up Attacks . | . . . . Damage Inflicted 1460 | . 941 419 100 Guns 1238 | . 802 373 63 Cannons 185 | . 139 46 . Explosions 37 | . . . 37 Melee . | . . . . Ramming . | . . . . Kinetic 583 | . 450 92 41 Thermal 840 | . 491 327 22 Explosive 37 | . . . 37 Electromagnetic . | . . . . Impact . | . . . . Slashing . | . . . . Piercing . | . . . . Highest Corruption 1 | . 1 1 1 Average Corruption 1 | . 1 1 1 Corruption Purged . | . . . . Corruption Blocked . | . . . . Effects 7 | . 3 4 . Message Errors 4 | . 2 2 . Matter Fused 2 | . 1 1 . Data Loss (major) 1 | . . 1 . Overload Shots . | . . . . Overflow Damage . | . . . . Projectiles . | . . . . Explosions . | . . . . Melee . | . . . . Knockbacks 1 | . . 1 . Impact . | . . . . Kinetic 1 | . . 1 . Secondary . | . . . . Self-Inflicted Damage . | . . . . Shots . | . . . . Rammed . | . . . . Targets Rammed . | . . . . Kicked . | . . . . Crushed . | . . . . Highest Temperature 215 | . 215 . 58 Average Temperature 68 | . 69 . 21 Received Heat Transfer 352 | . 184 132 36 Effects 2 | . 2 . . Interference 2 | . 2 . . Siege Activations . | . . . . Martial Activations . | . . . . Shielding Activations . | . . . . Robots Disrupted . | . . . . Combat Hostiles . | . . . . Robots Corrupted . | . . . . Combat Hostiles . | . . . . Parts Fried . | . . . . Impact Corruptions . | . . . . Robots Melted . | . . . . Combat Hostiles . | . . . . Parts Melted . | . . . . Heat Transferred 1587 | . 1125 425 37 Parts Sabotaged . | . . . . Parts Stolen . | . . . . Parts Stripped . | . . . . Power Chain Reactions . | . . . . Alert | -11 -10 -10 -9 ------- Run | Yrd Mat Sub Scr Maximum Alert Level . | . . . . Low Security (%) 100 | 100 100 . . Level 1 . | . . . . Level 2 . | . . . . Level 3 . | . . . . Level 4 . | . . . . Level 5 . | . . . . High Security . | . . . . Max Security . | . . . . Peak Influence 88 | . 88 . . Initial . | . . . . Average 17 | . 19 . . Influence Increases 375 | . 355 20 . Destroy 0b10 Robot/C 240 | . 220 20 . Destroy 0b10 Robot/NC 35 | . 35 . . Destroy Leader 48 | . 48 . . Successful Hack 22 | . 22 . . Disable Machine 15 | . 15 . . Partial Spotted 15 | . 15 . . Influence Decreases 375 | . 355 20 . Time Decay 272 | . 252 20 . Lost Part 40 | . 40 . . Purge Threat 63 | . 63 . . Squads Dispatched 1 | . 1 . . Investigation . | . . . . Extermination . | . . . . Reinforcement 1 | . 1 . . Assault . | . . . . Garrison . | . . . . Intercept . | . . . . Searches Triggered . | . . . . Construction Impeded . | . . . . Haulers Reinforced . | . . . . Active Scanning Responses . | . . . . Cargo Convoy Interrupts . | . . . . Stealth | -11 -10 -10 -9 --------- Run | Yrd Mat Sub Scr Distress Signals 1 | . 1 . . Communications Jammed . | . . . . Distress Signals . | . . . . Times Spotted 47 | . 22 16 9 Peak Tracking Total 6 | . 4 6 2 Tactical Retreats . | . . . . Traps | -11 -10 -10 -9 ------- Run | Yrd Mat Sub Scr Traps Triggered 2 | . 2 . . Indirectly . | . . . . Trap Hack Attempts . | . . . . Triggered . | . . . . Disarmed . | . . . . Reprogrammed . | . . . . Reused . | . . . . Traps Extracted . | . . . . Installed . | . . . . Triggered . | . . . . Machines | -11 -10 -10 -9 ---------- Run | Yrd Mat Sub Scr Machines Disabled 2 | . 1 . 1 Max in Single Turn 1 | . 1 . 1 Machines Repaired . | . . . . Machines Dismantled . | . . . . Machines Sabotaged . | . . . . Overloaded Fab Kills . | . . . . Hacking | -11 -10 -10 -9 --------- Run | Yrd Mat Sub Scr Machines Accessed 12 | . 7 . 5 Terminals 6 | . 6 . . Fabricators . | . . . . Repair Stations . | . . . . Recycling Units 1 | . 1 . . Scanalyzers . | . . . . Garrison Access . | . . . . Total Hacks 56 | . 14 . 42 Successful 50 | . 8 . 42 Failed 6 | . 6 . . Catastrophic 4 | . 4 . . Database Lockouts . | . . . . Manual 12 | . 12 . . Terminals 12 | . 12 . . Fabricators . | . . . . Repair Stations . | . . . . Recycling Units 2 | . 2 . . Scanalyzers . | . . . . Garrison Access . | . . . . Terminal Hacks 44 | . 2 . 42 Record 41 | . . . 41 Unreport Threat 1 | . 1 . . Locate Traps 1 | . 1 . . Proto ID Catalog 1 | . . . 1 Fabricator Hacks . | . . . . Repair Station Hacks . | . . . . Recycling Unit Hacks 1 | . 1 . . Retrieve Components 1 | . 1 . . Scanalyzer . | . . . . Garrison Access Hacks . | . . . . Unauthorized Hacks 5 | . 5 . . Terminals 5 | . 5 . . Skim 5 | . 5 . . Fabricators . | . . . . Repair Stations . | . . . . Recycling Units . | . . . . Scanalyzers . | . . . . Garrison Access . | . . . . Data Cores Recovered . | . . . . Used . | . . . . Hacking Detections 6 | . 6 . . Full Trace Events 1 | . 1 . . Feedback Events . | . . . . Feedback Blocked . | . . . . Robot Schematics Acquired . | . . . . Robots Built . | . . . . Authchips . | . . . . Time . | . . . . Total Robot Build Rating . | . . . . Part Schematics Acquired . | . . . . Parts Built . | . . . . Authchips . | . . . . Time . | . . . . Total Part Build Rating . | . . . . Part Studies Acquired . | . . . . Parts Repaired . | . . . . Time . | . . . . Parts Recycled . | . . . . Recycled Matter . | . . . . Retrieved Matter . | . . . . Retrieved Components 5 | . 5 . . Parts Scanalyzed . | . . . . Part Schematics Acquired . | . . . . Parts Damaged . | . . . . Bothacking | -11 -10 -10 -9 ------------ Run | Yrd Mat Sub Scr Used RIF Installer . | . . . . Robots Hacked . | . . . . Non-combat . | . . . . Combat . | . . . . Robot Hacks Applied . | . . . . Relay Couplers Released . | . . . . Fabnet Peak Effective % . | . . . . Robots Rewired . | . . . . Allies Hacked . | . . . . Hacks Repelled . | . . . . Allies | -11 -10 -10 -9 -------- Run | Yrd Mat Sub Scr Total Allies . | . . . . Largest Group . | . . . . Highest-Rated Group . | . . . . Highest-Rated Ally . | . . . . Total Orders . | . . . . Ally Attacks . | . . . . Total Damage . | . . . . Kills . | . . . . Allies Corrupted . | . . . . Allies Melted 3 | . . . 3 Intel | -11 -10 -10 -9 ------- Run | Yrd Mat Sub Scr Active Infowar (turns) 198 | . . 198 . Optics 198 | . . 198 . Robot Analysis Total . | . . . . Derelict Logs Recovered 4 | . . . 4 Drone Launches . | . . . . Drone Recoveries . | . . . . Exploration | -11 -10 -10 -9 ------------- Run | Yrd Mat Sub Scr Turns Passed 2936 | 75 853 633 1375 Spaces Moved 2082 | 55 486 427 1114 Core 11 | 10 1 . . Treads 2 | 2 . . . Legs 2069 | 43 485 427 1114 Wheels . | . . . . Hover . | . . . . Flight . | . . . . Fastest Speed 50 | 50 120 120 100 Average Speed 119 | 108 120 120 119 Slowest Speed 300 | 160 300 190 170 Overloaded Moves . | . . . . Propulsion Burnouts . | . . . . Robots Hopped . | . . . . Potential Cave-ins . | . . . . Cave-ins Triggered . | . . . . Exploration Rate (%) 43 | 5 70 23 75 Regions Visited 3 Branch Regions 2 Pre-discovered Areas 2 | . . 1 1 Known Exits Taken . | . . . . Unknown Exits Taken 3 | 1 1 1 . Scrap Searched 2 | . . . 2 Spaces Dug . | . . . . Terrain Destroyed 9 | . . . 9 Melee . | . . . . Projectile . | . . . . AOE 9 | . . . 9 Terrain Rammed . | . . . . Walls Destroyed . | . . . . Machines Disabled . | . . . . Actions | -11 -10 -10 -9 --------- Run | Yrd Mat Sub Scr Total 2341 | 67 617 504 1153 Wait 42 | . 33 6 3 Move 2079 | 54 485 426 1114 Hop . | . . . . Pick Up 24 | 4 8 7 5 Fast Attach 24 | 7 7 4 6 Attach 5 | . . 3 2 Detach 4 | 1 . 2 1 Swap 17 | . 5 9 3 Drop 38 | 1 9 14 14 Fire 107 | . 70 32 5 Melee . | . . . . Ram . | . . . . Kick . | . . . . Crush . | . . . . Escape Stasis . | . . . . Rewire 1 | . . 1 . Trap . | . . . . Miscellaneous . | . . . . Route ------- -11/Scrapyard -10/Materials (discovered 3 exits: [*Mat x2] / [*Sub]) -10/Subcaves -9/Scraptown (discovered 2 exits: *Fac x2) History --------- Turn | Location | Event 32 | -11/Scrapyard | Discovered new exit (range 16) 76 | -11/Scrapyard | Entered Materials 177 | -10/Materials | Discovered new exit (range 13) 314 | -10/Materials | Build established: Mutant 618 | -10/Materials | Discovered new exit (range 12) 654 | -10/Materials | Lost 3 parts (2n1w) 911 | -10/Materials | Build established: Scavenger-Mutant 919 | -10/Materials | Discovered new exit (range 10) 929 | -10/Materials | Entered Subcaves 930 | -10/Subcaves | Approached by a straggling Scientist 948 | -10/Subcaves | Disturbed a concealed Subdweller 975 | -10/Subcaves | Core integrity fell below 50% 1022 | -10/Subcaves | Ambushed by swarm of Subdwellers 1073 | -10/Subcaves | Lost 3 allies 1079 | -10/Subcaves | Lost 4 parts (1n1u2w) 1189 | -10/Subcaves | Shifting Twisted Machinery released Battle Rifle 1200 | -10/Subcaves | Curiously followed by a Cobbler waking with a query about "LVR3C" 1456 | -10/Subcaves | Learned location of Zion (-6) 1456 | -10/Subcaves | Met a Zionite searching for "candidates" 1498 | -10/Subcaves | Core integrity fell below 20% 1544 | -10/Subcaves | Scientist uncovered a shortcut to Scraptown 1562 | -10/Subcaves | Entered Scraptown 1631 | -9/Scraptown | System corruption cleaned by C-Scrubber 1974 | -9/Scraptown | Scanned Subdweller tech in exchange for log data 1977 | -9/Scraptown | Learned Research emergency access door positions 1979 | -9/Scraptown | Learned Factory emergency access door positions 1980 | -9/Scraptown | Learned location of 2 exits from Research 2002 | -9/Scraptown | Discovered new exit (range 7) 2082 | -9/Scraptown | Visited Cyclists 2123 | -9/Scraptown | Visited UFD Registry 2123 | -9/Scraptown | Registered with UFD as "Bioboard" 2141 | -9/Scraptown | Visited Cave Peace 2189 | -9/Scraptown | Visited Shadow of the Wyrm 2285 | -9/Scraptown | Visited Chapter 10 2354 | -9/Scraptown | Visited Junk Repository 2619 | -9/Scraptown | Visited Infowarlord's Domain 2662 | -9/Scraptown | Met Optimus 2662 | -9/Scraptown | Accepted into 0bPrime 2741 | -9/Scraptown | Civil war broke out across Scraptown 2790 | -9/Scraptown | Visited Science Guys 2814 | -9/Scraptown | Found Thermal Lance 2849 | -9/Scraptown | Identified exit to Factory 2937 | -9/Scraptown | Destroyed by 9X-OP3(j) with Overtuned Pulse Rifle Last Messages --------------- 02869_ 74-6PR(g): "It's not too late to join us in victory!" 02893_ PL-LN5(E): "0bPrime accepts all who want to win. Surrender now!" 02898_ Dropped Imp. Carbon-fiber Leg. 02898_ Acquired VSS Leg. 02902_ JV-KE8(j) cannibalizes Ovr. Titanium Leg to repair Ovr. Titanium Leg. 02905_ Acquired 20 matter. 02910_ SP-3EE(j) destroyed. 02919_ Dropped Carbon-fiber Leg. 02919_ Dropped VSS Leg. 02920_ Acquired Ovr. Titanium Leg. 02921_ CR-L23(M) switches sides. 02921_ Bolt penetrates CR-L23(M). 02922_ CR-L23(M) destroyed. 02923_ Acquired Ovr. Titanium Leg. 02925_ Dropped Plasma Rifle. 02926_ Acquired Ovr. Pulse Rifle. 02929_ Dropped VSS Leg. 02930_ Acquired Carbon-fiber Leg. [Achievement: This Is Interesting...] Map ----- +----------------------------------------------------+ | ?????????????????????????????????????????????????? | | ?????????????????????????????????????????????????? | | ?????????????????????????????????????????????????? | | ?????????????????????????????????????????????????? | | ?????????????????????????????????????????????????? | | ?????????????????????????????????????????????????? | | ?????????????????????????????????????????????????? | | ?????????????????????????????????????????????????? | | ?????????????????????????????????????????????????? | | ???????????????????????####??????????????????????? | | ??????????????????????## ##??????